bitfinex/quotes_SOLUSD_20241208
["timestamp","ask_amount","ask_price","bid_price","bid_amount"]
[1733666586524,0.12549,237.28,237.21,5.0]
[1733666587209,0.25098,237.28,237.21,5.0]
[1733666587410,0.12549,237.26,237.21,5.0]
[1733666587719,0.12549,237.26,237.19,5.0]
[1733666588298,0.25098,237.26,237.19,5.0]
[1733666590103,3.1612,237.25,237.19,5.0]
[1733666590432,0.12549,237.24,237.18,6.65e-05]
[1733666590635,0.25098,237.24,237.18,6.65e-05]
[1733666592023,0.25098,237.26,237.18,6.65e-05]
[1733666592222,0.12549,237.25,237.18,6.65e-05]
[1733666593112,0.25098,237.23,237.18,6.65e-05]
[1733666594735,20.25098,237.23,237.18,6.65e-05]
[1733666595120,0.25098,237.21,237.18,6.65e-05]
[1733666596205,20.25098,237.21,237.18,6.65e-05]
[1733666596525,0.12549,237.19,237.18,6.65e-05]
[1733666600550,0.37647,237.19,237.18,6.65e-05]
[1733666604816,0.25098,237.19,237.18,6.65e-05]
[1733666605950,3.1618,237.2,237.18,6.65e-05]
[1733666607324,0.25098,237.19,237.18,6.65e-05]
[1733666607513,0.37647,237.19,237.18,6.65e-05]
[1733666611673,0.12549,237.19,237.18,6.65e-05]
[1733666612543,0.25098,237.19,237.18,6.65e-05]
[1733666612926,0.37647,237.19,237.18,6.65e-05]
[1733666631875,20.37647,237.19,237.09,5.0]
[1733666632075,20.37647,237.19,237.04,2.28087668]
[1733666632076,0.25098,237.14,237.07,5.0]
[1733666633343,0.12549,237.12,237.07,5.0]
[1733666633979,0.25098,237.12,237.07,5.0]
[1733666634967,0.25098,237.1,237.05,5.0]
[1733666635165,0.12549,237.1,237.05,5.0]
[1733666635477,0.12549,237.1,236.95,7.5357]
[1733666635478,3.1633,237.09,237.03,5.0]
[1733666635677,3.1633,237.09,237.05,5.0]
[1733666636059,3.1633,237.09,237.03,5.0]
[1733666636366,3.1633,237.09,237.04,23.776884]
[1733666637278,0.12549,237.06,237.03,2.05247874]
[1733666638867,3.1636,237.07,237.03,2.05247874]
[1733666642855,0.12549,237.11,236.96,0.63284339]
[1733666642856,3.1631,237.11,237.07,2.05247874]
[1733666643482,0.12549,237.1,237.05,2.05247874]
[1733666646867,0.12549,237.08,237.03,2.05247874]
[1733666647383,0.25098,237.08,237.01,2.05247874]
[1733666647548,0.12549,237.07,237.01,2.05247874]
[1733666647753,0.25098,237.07,237.01,2.05247874]
[1733666648354,0.12549,237.07,237.01,2.05247874]
[1733666648593,0.12549,237.05,237.0,23.776884]
[1733666649480,3.28939,237.05,237.0,23.776884]
[1733666650076,3.28939,237.05,236.99,2.05247874]
[1733666650390,0.12549,237.0,236.94,0.4864665]
[1733666651481,0.37647,236.98,236.94,0.4864665]
[1733666652360,0.25098,236.96,236.94,0.4864665]
[1733666652663,0.12549,236.95,236.94,0.4864665]
[1733666654062,0.12549,236.95,236.94,6.65e-05]
[1733666654261,20.37647,236.95,236.94,6.65e-05]
[1733666656794,20.0,236.95,236.94,6.65e-05]
[1733666657293,20.25098,236.95,236.94,6.65e-05]
[1733666658082,20.37647,236.95,236.94,6.65e-05]
[1733666659996,20.12549,236.95,236.94,6.65e-05]
[1733666664410,0.12549,237.0,236.94,6.65e-05]
[1733666664866,0.37647,237.0,236.94,6.65e-05]
[1733666665067,0.37647,236.98,236.94,6.65e-05]
[1733666667806,4.15735482,237.07,236.98,2.05247874]
[1733666667998,7.8911,237.09,236.98,2.05247874]
[1733666668509,0.25098,237.08,236.98,2.05247874]
[1733666668886,7.8911,237.09,236.98,2.05247874]
[1733666669387,0.37647,237.06,236.98,2.05247874]
[1733666669590,0.25098,237.06,236.98,2.05247874]
[1733666670612,0.12549,237.05,236.98,2.05247874]
[1733666676292,0.12549,237.05,237.01,2.05247874]
[1733666676618,0.25098,237.06,237.01,2.05247874]
[1733666677416,0.12549,237.06,237.01,2.05247874]
[1733666678510,0.12549,237.06,236.99,2.05247874]
[1733666678712,0.37647,237.04,236.97,2.05247874]
[1733666678921,0.37647,237.04,236.94,6.65e-05]
[1733666678922,0.37647,237.04,236.95,2.05247874]
[1733666679710,0.12549,237.02,236.95,2.05247874]
[1733666680089,0.25098,237.02,236.95,2.05247874]
[1733666680283,0.25098,237.02,236.94,6.65e-05]
[1733666680487,0.25098,237.0,236.94,6.65e-05]
[1733666681102,0.12549,237.01,236.94,6.65e-05]
[1733666682599,0.12549,236.99,236.94,6.65e-05]
[1733666683723,0.25098,236.99,236.94,6.65e-05]
[1733666683919,0.12549,236.97,236.94,6.65e-05]
[1733666684097,0.25098,236.98,236.94,6.65e-05]
[1733666687825,0.37647,236.96,236.94,6.65e-05]
[1733666690436,3.54167,236.95,236.94,6.65e-05]
[1733666695152,23.54167,236.95,236.94,6.65e-05]
[1733666696256,50.26607526,236.95,236.94,6.65e-05]
[1733666696812,23.54167,236.95,236.94,6.65e-05]
[1733666699657,50.26607526,236.95,236.94,6.65e-05]
[1733666700330,58.17857526,236.95,236.94,6.65e-05]
[1733666700734,25.14837,236.95,236.94,6.65e-05]
[1733666705342,23.54167,236.95,236.94,6.65e-05]
[1733666705553,23.41618,236.95,236.94,6.65e-05]
[1733666706367,23.54167,236.95,236.94,6.65e-05]
[1733666706832,3.54167,236.95,236.94,6.65e-05]
[1733666707360,0.25098,236.95,236.94,6.65e-05]
[1733666707673,6.3058,237.05,236.94,6.65e-05]
[1733666707674,3.1647,236.99,236.94,6.65e-05]
[1733666708165,0.25098,236.98,236.94,6.65e-05]
[1733666708931,0.12549,236.97,236.94,6.65e-05]
[1733666711332,0.37647,236.95,236.94,6.65e-05]
[1733666712856,0.12549,236.95,236.94,6.65e-05]
[1733666713328,20.0,237.0,236.94,6.65e-05]
[1733666713329,3.1646,237.0,236.96,2.05247874]
[1733666713533,6.3265,237.1,236.98,2.05247874]
[1733666713759,3.1633,237.09,237.0,2.05247874]
[1733666715057,0.37647,237.08,237.0,2.05247874]
[1733666715432,0.25098,237.08,237.0,2.05247874]
[1733666716166,0.12549,237.05,236.96,2.05247874]
[1733666717241,0.12549,237.05,236.98,2.05247874]
[1733666718451,0.12549,237.05,237.0,2.05247874]
[1733666726682,3.1631,237.11,237.04,2.05247874]
[1733666727479,0.25098,237.1,237.04,2.05247874]
[1733666728395,0.12549,237.09,237.04,2.05247874]
[1733666729874,0.25098,237.1,237.04,2.05247874]
[1733666730579,0.12549,237.1,237.04,2.05247874]
[1733666730772,0.12549,237.1,237.06,2.05247874]
[1733666734276,0.12549,237.07,237.01,2.05247874]
[1733666736666,0.12549,237.05,236.99,2.05247874]
[1733666737258,0.25098,237.05,236.99,2.05247874]
[1733666737456,0.25098,237.05,236.97,8.71477874]
[1733666737659,0.25098,237.04,236.97,2.05247874]
[1733666738266,0.12549,237.04,236.99,2.05247874]
[1733666738478,0.37647,237.05,236.99,2.05247874]
[1733666738874,0.37647,237.03,236.97,2.05247874]
[1733666743091,0.12549,237.01,236.97,2.05247874]
[1733666748099,0.25098,237.01,236.97,2.05247874]
[1733666748281,0.25098,237.01,236.94,2.05254524]
[1733666748282,0.12549,236.99,236.94,2.05254524]
[1733666750709,0.25098,236.99,236.94,2.05254524]
[1733666751607,0.12549,236.99,236.96,2.05247874]
[1733666759779,0.12549,236.99,236.94,6.65e-05]
[1733666759780,3.164,237.04,237.0,2.05247874]
[1733666760390,0.12549,237.03,237.0,2.05247874]
[1733666761785,3.164,237.04,237.02,2.05247874]
[1733666762008,3.1635,237.08,237.04,2.05247874]
[1733666762518,0.12549,237.07,237.04,2.05247874]
[1733666762922,3.1635,237.08,237.04,2.05247874]
[1733666763098,8.2189549,237.14,237.04,2.05247874]
[1733666763099,3.1628,237.13,237.04,2.05247874]
[1733666763410,0.12549,237.09,237.04,2.05247874]
[1733666763590,0.12549,237.1,237.06,2.05247874]
[1733666763785,3.1628,237.13,237.06,2.05247874]
[1733666764790,0.25098,237.12,237.06,2.05247874]
[1733666764988,0.12549,237.11,237.06,2.05247874]
[1733666765610,0.12549,237.08,237.0,2.05247874]
[1733666765803,0.12549,237.05,237.0,2.05247874]
[1733666766333,0.12549,237.05,236.98,2.05247874]
[1733666766735,0.12549,237.05,236.96,2.05247874]
[1733666768029,0.25098,237.03,236.96,2.05247874]
[1733666768240,0.12549,237.02,236.96,2.05247874]
[1733666770617,0.37647,237.0,236.96,2.05247874]
[1733666771732,3.1646,236.99,236.96,2.05247874]
[1733666775335,0.12549,236.98,236.96,2.05247874]
[1733666778039,3.1649,236.97,236.94,6.65e-05]
[1733666778241,0.25098,236.96,236.94,6.65e-05]
[1733666779146,3.29069,236.95,236.94,6.65e-05]
[1733666779318,3.41618,236.95,236.94,6.65e-05]
[1733666779724,3.54167,236.95,236.94,6.65e-05]
[1733666782934,23.54167,236.95,236.94,6.65e-05]
[1733666790040,0.37647,236.94,236.83,2.05247874]
[1733666790249,20.37647,236.94,236.83,2.05247874]
[1733666790413,0.37647,236.91,236.83,2.05247874]
[1733666791020,0.37647,236.89,236.83,2.05247874]
[1733666792454,0.37647,236.89,236.77,1.6531]
[1733666792455,0.25098,236.87,236.8,2.05247874]
[1733666792640,0.12549,236.86,236.8,2.05247874]
[1733666794349,0.25098,236.84,236.8,2.05247874]
[1733666799847,0.25098,236.82,236.76,2.05247874]
[1733666800668,0.25098,236.81,236.76,2.05247874]
[1733666800836,0.12549,236.8,236.76,2.05247874]
[1733666801032,20.12549,236.8,236.76,2.05247874]
[1733666801239,0.12549,236.79,236.76,2.05247874]
[1733666801662,0.12549,236.78,236.74,2.05247874]
[1733666801861,0.25098,236.78,236.74,2.05247874]
[1733666802033,0.12549,236.77,236.74,2.05247874]
[1733666802865,0.12549,236.8,236.74,2.05247874]
[1733666803176,0.12549,236.8,236.71,0.4864665]
[1733666803177,0.12549,236.8,236.76,2.05247874]
[1733666803472,3.1665,236.86,236.81,2.05247874]
[1733666803837,3.1659,236.9,236.83,2.05247874]
[1733666804078,3.1659,236.9,236.85,2.05247874]
[1733666808264,3.1659,236.9,236.85,2.05247874]
[1733666810481,3.1659,236.9,236.87,2.05247874]
[1733666814003,3.1661,236.88,236.83,2.05247874]
[1733666814297,0.25098,236.87,236.83,2.05247874]
[1733666814462,20.0,236.86,236.81,2.05247874]
[1733666815295,0.25098,236.85,236.79,2.05247874]
[1733666815596,0.12549,236.84,236.8,2.05247874]
[1733666815763,0.12549,236.84,236.77,2.05247874]
[1733666815966,0.12549,236.83,236.77,2.05247874]
[1733666816179,3.1669,236.82,236.77,2.05247874]
[1733666816368,0.25098,236.81,236.75,2.05247874]
[1733666817200,0.12549,236.78,236.75,2.05247874]
[1733666817383,0.25098,236.78,236.73,2.05247874]
[1733666818504,3.41858,236.78,236.73,2.05247874]
[1733666818722,0.12549,236.76,236.73,2.05247874]
[1733666819068,0.25098,236.76,236.73,2.05247874]
[1733666823610,0.25098,236.76,236.71,2.53894524]
[1733666827107,3.1678,236.75,236.71,2.53894524]
[1733666827315,0.25098,236.74,236.71,2.53894524]
[1733666827728,0.12549,236.72,236.71,0.4864665]
[1733666828983,0.12549,236.72,236.71,6.65e-05]
[1733666829178,20.37647,236.72,236.68,10.0]
[1733666829439,0.12549,236.69,236.68,10.0]
[1733666829716,0.37647,236.69,236.68,10.0]
[1733666830115,0.37647,236.69,236.68,6.291]
[1733666830312,0.12549,236.67,236.65,0.07152482]
[1733666830498,0.25098,236.67,236.65,0.07152482]
[1733666831516,20.12549,236.68,236.65,0.07152482]
[1733666831517,3.42008,236.66,236.65,0.07152482]
[1733666831880,3.54557,236.66,236.65,0.07152482]
[1733666835304,27.322454,236.66,236.65,2.482e-05]
[1733666835508,3.54557,236.66,236.65,2.482e-05]
[1733666836627,23.54557,236.66,236.65,2.482e-05]
[1733666839500,23.1691,236.66,236.65,2.482e-05]
[1733666840109,23.42008,236.66,236.65,2.482e-05]
[1733666840836,23.54557,236.66,236.65,2.482e-05]
[1733666843929,20.37647,236.65,236.57,0.1124614]
[1733666844161,33.535164,236.66,236.57,0.1124614]
[1733666844162,0.12549,236.61,236.57,0.1124614]
[1733666845014,0.12549,236.61,236.57,2.16494014]
[1733666847936,3.42058,236.62,236.57,2.16494014]
[1733666848267,0.12549,236.66,236.59,2.05247874]
[1733666848472,3.1689,236.67,236.63,2.05247874]
[1733666849243,0.12549,236.66,236.63,2.05247874]
[1733666850268,0.25098,236.66,236.61,2.05247874]
[1733666850440,0.12549,236.61,236.57,0.1124614]
[1733666850641,0.37647,236.61,236.57,0.1124614]
[1733666850837,0.12549,236.59,236.57,0.1124614]
[1733666851054,0.12549,236.61,236.57,0.1124614]
[1733666851258,0.25098,236.61,236.57,0.1124614]
[1733666852173,0.12549,236.59,236.57,0.1124614]
[1733666852349,3.1699,236.6,236.58,2.05247874]
[1733666852873,20.0,236.62,236.6,2.05247874]
[1733666853042,3.1694,236.64,236.6,2.05247874]
[1733666854878,1.72021821,236.69,236.6,2.05247874]
[1733666855086,0.12549,236.67,236.62,2.05247874]
[1733666855778,23.1688,236.68,236.64,2.05247874]
[1733666856079,0.25098,236.67,236.64,2.05247874]
[1733666856378,0.12549,236.67,236.64,2.05247874]
[1733666856872,0.25098,236.67,236.64,2.05247874]
[1733666857081,0.25098,236.65,236.6,2.05247874]
[1733666857449,0.12549,236.64,236.6,2.05247874]
[1733666858350,3.1695,236.63,236.6,2.05247874]
[1733666859251,3.1695,236.63,236.58,2.05247874]
[1733666859442,3.1695,236.63,236.61,2.05247874]
[1733666859648,0.12549,236.62,236.57,2.16494014]
[1733666859889,0.12549,236.62,236.59,2.05247874]
[1733666867017,0.12549,236.64,236.59,2.05247874]
[1733666867283,0.12549,236.66,236.59,2.05247874]
[1733666867647,0.25098,236.63,236.59,2.05247874]
[1733666867843,0.12549,236.63,236.59,2.05247874]
[1733666868048,0.12549,236.63,236.57,0.1124614]
[1733666868049,3.1689,236.67,236.65,2.05247874]
[1733666868295,9.5053,236.71,236.67,2.05247874]
[1733666868680,0.25098,236.7,236.67,2.05247874]
[1733666869079,9.5053,236.71,236.67,2.05247874]
[1733666869387,3.1685,236.71,236.69,2.05247874]
[1733666870394,6.3352,236.77,236.69,2.05247874]
[1733666870560,0.25098,236.76,236.69,2.05247874]
[1733666870763,0.25098,236.73,236.69,2.05247874]
[1733666871580,3.41918,236.73,236.69,2.05247874]
[1733666875801,3.1682,236.73,236.71,2.05247874]
[1733666876172,0.12549,236.72,236.71,2.05247874]
[1733666876369,0.12549,236.72,236.69,2.05247874]
[1733666876593,0.25098,236.7,236.67,2.05247874]
[1733666876788,0.12549,236.7,236.67,2.05247874]
[1733666877501,0.12549,236.7,236.62,6.2182]
[1733666877502,3.1684,236.71,236.69,2.05247874]
[1733666878680,20.0,236.74,236.72,2.05247874]
[1733666879303,3.1679,236.75,236.72,2.05247874]
[1733666880403,3.1674,236.79,236.78,2.05247874]
[1733666880907,0.12549,236.78,236.76,2.05247874]
[1733666883297,3.1674,236.79,236.76,2.05247874]
[1733666883506,31.30488722,236.95,236.81,2.05247874]
[1733666883507,3.1669,236.83,236.81,2.05247874]
[1733666884617,9.74848,236.9,236.81,2.05247874]
[1733666884788,0.25098,236.88,236.81,2.05247874]
[1733666884992,0.12549,236.87,236.81,2.05247874]
[1733666885307,0.12549,236.86,236.81,2.05247874]
[1733666885603,3.29199,236.86,236.81,2.05247874]
[1733666886182,3.29199,236.86,236.83,2.05247874]
[1733666886684,3.1665,236.86,236.83,2.05247874]
[1733666887304,3.1665,236.86,236.73,0.6334673]
[1733666887305,3.1666,236.84,236.81,2.05247874]
[1733666887510,3.1666,236.84,236.79,2.05247874]
[1733666887511,0.12549,236.83,236.79,2.05247874]
[1733666889776,3.1669,236.82,236.79,2.05247874]
[1733666890412,3.1669,236.82,236.77,2.05247874]
[1733666890413,0.12549,236.81,236.77,2.05247874]
[1733666890596,0.12549,236.81,236.79,2.05247874]
[1733666890783,23.1669,236.82,236.79,2.05247874]
[1733666891297,3.1669,236.82,236.79,2.05247874]
[1733666892023,3.1669,236.82,236.81,2.05247874]
[1733666895808,0.37647,236.86,236.81,2.05247874]
[1733666896003,3.54297,236.86,236.81,2.05247874]
[1733666897549,3.29199,236.86,236.83,2.05247874]
[1733666897910,3.1665,236.86,236.85,2.05247874]
[1733666898718,3.1665,236.86,236.72,2.28299055]
[1733666898719,3.1659,236.9,236.87,2.05247874]
[1733666899512,0.12549,236.89,236.85,2.05247874]
[1733666900015,0.12549,236.87,236.83,2.05247874]
[1733666900419,0.12549,236.87,236.85,2.05247874]
[1733666902012,3.29189,236.86,236.85,2.05247874]
[1733666905641,1.65465272,236.92,236.89,2.05247874]
[1733666905642,3.1657,236.91,236.89,2.05247874]
[1733666905944,0.12549,236.9,236.87,2.05247874]
[1733666906641,0.12549,236.88,236.87,2.05247874]
[1733666907647,0.12549,236.86,236.83,2.05247874]
[1733666908843,3.29189,236.86,236.83,2.05247874]
[1733666912521,3.29189,236.86,236.74,5.63344682]
[1733666912522,3.1664,236.86,236.85,2.05247874]
[1733666912727,3.166,236.9,236.87,2.05247874]
[1733666912947,3.166,236.9,236.89,2.05247874]
[1733666914022,20.0,236.91,236.89,2.05247874]
[1733666914228,20.12549,236.93,236.91,2.05247874]
[1733666914419,0.12549,236.93,236.91,2.05247874]
[1733666915231,0.12549,236.94,236.91,2.05247874]
[1733666915641,0.12549,236.92,236.91,2.05247874]
[1733666917665,3.1657,236.91,236.89,2.05247874]
[1733666918647,0.12549,236.9,236.89,2.05247874]
[1733666920841,23.1653,236.95,236.94,2.05247874]
[1733666921252,3.1653,236.95,236.92,2.05247874]
[1733666922088,3.1653,236.95,236.9,2.05247874]
[1733666922469,0.12549,236.94,236.9,2.05247874]
[1733666922846,0.12549,236.94,236.92,2.05247874]
[1733666923400,3.29089,236.93,236.92,2.05247874]
[1733666924991,0.12549,236.92,236.88,2.05247874]
[1733666925298,0.12549,236.92,236.9,2.05247874]
[1733666926358,20.12549,236.92,236.9,2.05247874]
[1733666932298,3.1657,236.91,236.88,2.05247874]
[1733666933704,0.12549,236.9,236.88,2.05247874]
[1733666934500,3.166,236.89,236.88,2.05247874]
[1733666936883,3.29149,236.89,236.88,2.05247874]
[1733666938812,0.12549,236.88,236.85,2.05247874]
[1733666939009,0.12549,236.88,236.87,2.05247874]
[1733666940825,3.166,236.89,236.87,2.05247874]
[1733666949518,3.1653,236.94,236.92,2.05247874]
[1733666949723,1.68129669,236.97,236.95,2.05247874]
[1733666949882,3.1649,236.98,236.97,2.05247874]
[1733666950085,7.9584,237.04,236.87,0.63308662]
[1733666950086,3.1643,237.02,236.99,2.05247874]
[1733666950916,3.1643,237.02,237.01,2.05247874]
[1733666951484,3.1637,237.06,237.04,2.05247874]
[1733666953207,20.25098,237.05,237.04,2.05247874]
[1733666956215,0.25098,237.04,237.02,2.05247874]
[1733666956423,3.41498,237.04,237.0,2.05247874]
[1733666956647,0.12549,237.01,236.98,2.05247874]
[1733666957517,0.12549,236.99,236.98,2.05247874]
[1733666958429,3.29009,236.99,236.98,2.05247874]
[1733666958855,23.29009,236.99,236.98,2.05247874]
[1733666959813,23.29009,236.99,236.91,1.6353]
[1733666959814,23.902374,237.08,237.01,2.05247874]
[1733666960332,0.12549,237.06,237.01,2.05247874]
[1733666960980,0.25098,237.04,237.01,2.05247874]
[1733666961150,23.1638,237.05,237.04,2.05247874]
[1733666961658,3.1638,237.05,237.04,2.05247874]
[1733666962562,3.28929,237.05,237.04,2.05247874]
[1733666962979,3.1638,237.05,237.04,2.05247874]
[1733666963181,3.53987,237.09,237.06,2.05247874]
[1733666963478,3.53987,237.09,236.95,0.63284838]
[1733666963479,3.53987,237.09,237.03,2.05247874]
[1733666963666,3.53987,237.09,237.05,2.05247874]
[1733666963983,9.86657,237.09,237.05,2.05247874]
[1733666964579,20.25098,237.06,237.05,2.05247874]
[1733666965552,3.41478,237.05,237.03,2.05247874]
[1733666966143,3.41478,237.05,237.01,2.05247874]
[1733666967153,3.41478,237.05,237.03,2.05247874]
[1733666969990,6.3267,237.09,237.03,2.05247874]
[1733666970151,9.49,237.09,237.03,2.05247874]
[1733666970352,9.49,237.09,237.06,2.05247874]
[1733666971087,3.1633,237.09,237.06,2.05247874]
[1733666971659,0.12549,237.08,237.06,2.05247874]
[1733666986325,23.1633,237.09,237.08,2.05247874]
[1733666988503,20.0,237.09,237.08,2.05247874]
[1733666990620,3.1629,237.13,237.12,2.05247874]
[1733666990823,3.28839,237.13,237.12,2.05247874]
[1733666993004,0.25098,237.12,237.1,2.05247874]
[1733666994118,0.25098,237.13,237.1,2.05247874]
[1733666994309,3.28849,237.11,237.1,2.05247874]
[1733666997038,20.0,237.14,237.13,2.05247874]
[1733666997266,3.1626,237.15,237.13,2.05247874]
[1733666998559,0.25098,237.17,237.13,2.05247874]
[1733666999152,0.25098,237.17,237.16,2.05247874]
[1733666999761,3.41318,237.17,237.16,2.05247874]
[1733667000054,3.28769,237.17,237.16,2.05247874]
[1733667000655,3.1622,237.17,237.16,2.05247874]
[1733667000965,3.28769,237.17,237.16,2.05247874]
[1733667002468,3.41318,237.17,237.16,2.05247874]
[1733667008050,3.28769,237.17,237.16,2.05247874]
[1733667008371,3.1622,237.17,237.16,2.05247874]
[1733667008575,3.1618,237.21,237.2,2.05247874]
[1733667010364,3.1612,237.25,237.24,2.05247874]
[1733667011245,3.41218,237.25,237.24,2.05247874]
[1733667012453,20.12549,237.23,237.22,2.05247874]
[1733667015484,20.0,237.23,237.22,2.05247874]
[1733667020761,20.12549,237.23,237.22,2.05247874]
[1733667022685,20.0,237.23,237.22,2.05247874]
[1733667023693,3.1612,237.25,237.24,2.05247874]
[1733667027279,10.0,237.26,237.24,2.05247874]
[1733667028731,10.0,237.26,237.24,2.68466308]
[1733667031734,10.0,237.26,237.24,2.05247874]
[1733667038508,3.41218,237.25,237.24,2.05247874]
[1733667047224,20.25098,237.23,237.22,2.05247874]
[1733667048246,44.027864,237.23,237.22,2.05247874]
[1733667048447,20.0,237.19,237.09,1.5783]
[1733667048613,20.0,237.19,237.09,2.21078592]
[1733667051037,23.162,237.19,237.09,2.21078592]
[1733667053026,23.902374,237.22,237.09,2.21078592]
[1733667053027,20.0,237.22,237.09,7.21078592]
[1733667053345,0.25098,237.21,237.09,2.21078592]
[1733667053644,20.0,237.2,237.09,2.21078592]
[1733667054027,0.25098,237.19,237.09,2.21078592]
[1733667054733,20.0,237.22,237.09,12.21078592]
[1733667055129,4.7756,237.23,237.11,5.0]
[1733667055317,4.7756,237.23,237.12,0.63241577]
[1733667055830,0.25098,237.22,237.12,0.63241577]
[1733667056016,3.1615,237.23,237.12,0.63241577]
[1733667056430,3.161,237.27,237.15,5.0]
[1733667056633,3.161,237.27,237.16,0.63230738]
[1733667056949,3.161,237.27,237.16,6.75190738]
[1733667057446,0.4864665,237.29,237.17,5.0]
[1733667057631,0.25098,237.28,237.18,0.63225591]
[1733667060746,20.0,237.25,237.16,6.7518949]
[1733667061051,20.0,237.25,237.16,11.7518949]
[1733667061719,3.41178,237.28,237.16,11.7518949]
[1733667063322,3.1608,237.28,237.17,1.6387]
[1733667063522,0.4864665,237.29,237.18,0.63220812]
[1733667064351,3.6471665,237.29,237.18,0.63220812]
[1733667066149,3.6471665,237.29,237.17,1.6387]
[1733667066451,3.1609,237.27,237.17,1.6387]
[1733667067429,0.12549,237.26,237.17,1.6387]
[1733667073456,20.0,237.23,237.14,0.63235102]
[1733667073643,3.1612,237.25,237.14,0.63241195]
[1733667073837,3.1612,237.25,237.14,5.63241195]
[1733667076660,0.25098,237.28,237.14,5.63241195]
[1733667076860,20.0,237.26,237.14,5.63241195]
[1733667077044,0.25098,237.25,237.14,0.63241195]
[1733667077663,20.0,237.22,237.12,0.63239541]
[1733667082535,23.1616,237.22,237.12,0.63239541]
[1733667082855,23.1616,237.22,237.11,8.2164]
[1733667083054,0.12549,237.21,237.11,8.2164]
[1733667083266,24.027864,237.21,237.11,8.2164]
[1733667083472,20.0,237.18,237.11,8.2164]
[1733667086764,20.0,237.18,237.07,0.63252777]
[1733667087070,3.41318,237.17,237.06,5.0]
[1733667088144,3.41318,237.17,237.05,13.0327]
[1733667088987,0.25098,237.15,237.05,13.0327]
[1733667090272,0.25098,237.15,237.05,8.0327]
[1733667091274,0.25098,237.13,237.05,8.0327]
[1733667091463,0.25098,237.13,237.05,1.5429]
[1733667092407,0.25098,237.13,237.0,6.4898]
[1733667092408,0.25098,237.09,237.0,6.4898]
[1733667094584,0.25098,237.07,237.0,6.4898]
[1733667094960,0.25098,237.07,236.97,7.17560196]
[1733667095177,24.027864,237.07,236.97,6.5429]
[1733667095377,0.25098,237.05,236.97,5.2229]
[1733667096357,0.25098,237.05,236.97,1.5429]
[1733667096788,1.32,237.08,236.98,0.63289737]
[1733667096987,1.32,237.1,236.98,0.63289737]
[1733667097289,1.32,237.14,237.01,0.12549]
[1733667097591,1.32,237.14,237.02,3.68]
[1733667097786,1.32,237.14,237.03,0.63265096]
[1733667099183,0.25098,237.07,236.96,3.68]
[1733667099362,1.32,237.06,236.96,3.68]
[1733667099564,1.32,237.06,236.95,6.4898]
[1733667099763,1.32,237.04,236.95,6.4898]
[1733667100466,1.32,237.04,236.95,7.12268797]
[1733667101377,1.32,237.06,236.95,7.12268797]
[1733667106871,1.32,237.06,236.97,2.17574161]
[1733667107076,0.25098,237.07,236.97,2.17574161]
[1733667110696,1.32,237.08,236.97,2.17574161]
[1733667110888,21.32,237.1,236.97,7.17574161]
[1733667111087,4.483,237.12,236.97,10.85574161]
[1733667111298,3.163,237.12,236.98,0.12549]
[1733667111492,0.12549,237.11,236.99,0.63269447]
[1733667111679,4.483,237.12,236.99,0.63269447]
[1733667112589,1.32,237.09,236.99,0.63269447]
[1733667114071,1.32,237.09,236.97,5.2229]
[1733667114272,1.32,237.06,236.97,1.5429]
[1733667115877,1.32,237.06,236.98,0.63284679]
[1733667118286,1.32,237.06,236.97,1.5429]
[1733667121487,1.32,237.06,236.98,0.63283104]
[1733667121708,1.32,237.06,236.97,1.5429]
[1733667122924,1.32,237.04,236.97,1.5429]
[1733667123639,1.32,237.04,236.95,6.4898]
[1733667123845,1.32,237.02,236.91,1.5818]
[1733667124135,1.32,237.02,236.91,2.21477741]
[1733667125601,3.28989,237.01,236.91,1.5818]
[1733667126595,1.32,236.99,236.91,1.5818]
[1733667127141,1.32,236.97,236.91,1.5818]
[1733667127501,0.12549,237.01,236.91,1.5818]
[1733667127709,0.12549,237.01,236.92,0.63297483]
[1733667128009,1.32,237.02,236.92,0.63297483]
[1733667129412,1.32,237.04,236.92,0.63297483]
[1733667129728,1.32,237.04,236.93,23.902374]
[1733667129963,1.32,237.06,236.95,23.902374]
[1733667130137,1.32,237.06,236.96,0.63280825]